[Event "Titled Tuesday Blitz February 22 Early 2022"]
[White "Gormally, Daniel W"]
[Black "Iskusnyh, Sergei"]
[WhiteFideId "406465"]
[BlackFideId "4120027"]
[WhiteElo "2543"]
[BlackElo "2492"]
[Result "0-1"]
[Round "10"]
[TimeControl "180+1"]
[Date "2022.02.22"]
[WhiteClock "0:00:44"]
[BlackClock "0:01:50"]

1. g3 {[%clk 0:03:00]}  d5 {[%clk 0:02:58]} 2. Bg2 {[%clk 0:03:00]}  c6 {[%clk 0:02:57]} 3. d3 {[%clk 0:03:00]}  Nf6 {[%clk 0:02:54]} 4. Nf3 {[%clk 0:03:01]}  Bf5 {[%clk 0:02:54]} 5. O-O {[%clk 0:03:00]}  h6 {[%clk 0:02:53]} 6. Re1 {[%clk 0:02:59]}  e6 {[%clk 0:02:52]} 7. Nbd2 {[%clk 0:02:50]}  Be7 {[%clk 0:02:51]} 8. c3 {[%clk 0:02:50]}  O-O {[%clk 0:02:50]} 9. e4 {[%clk 0:02:50]}  dxe4 {[%clk 0:02:44]} 10. dxe4 {[%clk 0:02:38]}  Nxe4 {[%clk 0:02:41]} 11. Nd4 {[%clk 0:02:32]}  Nxd2 {[%clk 0:02:35]} 12. Nxf5 {[%clk 0:02:32]}  exf5 {[%clk 0:02:33]} 13. Bxd2 {[%clk 0:02:32]}  Bg5 {[%clk 0:02:29]} 14. Bxg5 {[%clk 0:02:11]}  hxg5 {[%clk 0:02:27]} 15. Qxd8 {[%clk 0:01:53]}  Rxd8 {[%clk 0:02:26]} 16. Re7 {[%clk 0:01:54]}  Nd7 {[%clk 0:02:26]} 17. Rd1 {[%clk 0:01:52]}  Nc5 {[%clk 0:02:25]} 18. Rd4 {[%clk 0:01:40]}  Kf8 {[%clk 0:02:19]} 19. Rc7 {[%clk 0:01:19]}  Rdc8 {[%clk 0:02:17]} 20. Rxc8+ {[%clk 0:01:06]}  Rxc8 {[%clk 0:02:18]} 21. b4 {[%clk 0:01:00]}  Ne6 {[%clk 0:02:18]} 22. Rd2 {[%clk 0:00:56]}  g4 {[%clk 0:02:15]} 23. h3 {[%clk 0:00:53]}  gxh3 {[%clk 0:02:14]} 24. Bxh3 {[%clk 0:00:53]}  g6 {[%clk 0:02:14]} 25. g4 {[%clk 0:00:53]}  Ng5 {[%clk 0:02:07]} 26. Kg2 {[%clk 0:00:49]}  f4 {[%clk 0:01:53]} 27. Rd4 {[%clk 0:00:44]}  Kg7 {[%clk 0:01:50]} 0-1


[Site "https://www.chess.com"]

[Event "Titled Tuesday Blitz February 22 Early 2022"]
[White "Grandelius, Nils"]
[Black "Moiseenko, Alexander"]
[WhiteFideId "1710400"]
[BlackFideId "14102560"]
[WhiteElo "2617"]
[BlackElo "2577"]
[Result "1/2-1/2"]
[Round "10"]
[TimeControl "180+1"]
[Date "2022.02.22"]
[WhiteClock "0:00:08"]
[BlackClock "0:00:05"]

1. Nf3 {[%clk 0:03:00]}  Nf6 {[%clk 0:02:53]} 2. g3 {[%clk 0:03:01]}  d5 {[%clk 0:02:53]} 3. Bg2 {[%clk 0:03:00]}  e6 {[%clk 0:02:53]} 4. O-O {[%clk 0:03:00]}  c5 {[%clk 0:02:53]} 5. c4 {[%clk 0:02:57]}  d4 {[%clk 0:02:54]} 6. e3 {[%clk 0:02:56]}  Nc6 {[%clk 0:02:54]} 7. exd4 {[%clk 0:02:52]}  cxd4 {[%clk 0:02:55]} 8. d3 {[%clk 0:02:53]}  Bd6 {[%clk 0:02:55]} 9. a3 {[%clk 0:02:49]}  a5 {[%clk 0:02:54]} 10. Bg5 {[%clk 0:02:43]}  h6 {[%clk 0:02:54]} 11. Bxf6 {[%clk 0:02:44]}  Qxf6 {[%clk 0:02:54]} 12. Nfd2 {[%clk 0:02:44]}  Qe7 {[%clk 0:02:44]} 13. Ne4 {[%clk 0:02:45]}  Bc7 {[%clk 0:02:43]} 14. c5 {[%clk 0:02:41]}  O-O {[%clk 0:02:24]} 15. Nbd2 {[%clk 0:02:41]}  f5 {[%clk 0:02:16]} 16. Nd6 {[%clk 0:02:41]}  Bxd6 {[%clk 0:02:16]} 17. cxd6 {[%clk 0:02:42]}  Qxd6 {[%clk 0:02:16]} 18. Nc4 {[%clk 0:02:43]}  Qc7 {[%clk 0:02:02]} 19. Re1 {[%clk 0:02:36]}  Ra6 {[%clk 0:01:48]} 20. Rc1 {[%clk 0:02:35]}  Kh7 {[%clk 0:01:41]} 21. Qd2 {[%clk 0:02:17]}  a4 {[%clk 0:01:38]} 22. f4 {[%clk 0:01:59]}  Bd7 {[%clk 0:01:35]} 23. Qf2 {[%clk 0:01:55]}  b5 {[%clk 0:01:26]} 24. Ne5 {[%clk 0:01:55]}  Qd6 {[%clk 0:01:25]} 25. h4 {[%clk 0:01:41]}  Rc8 {[%clk 0:01:14]} 26. Nf3 {[%clk 0:01:27]}  b4 {[%clk 0:01:02]} 27. axb4 {[%clk 0:01:16]}  Nxb4 {[%clk 0:01:02]} 28. Ne5 {[%clk 0:01:16]}  a3 {[%clk 0:00:41]} 29. Rxc8 {[%clk 0:01:12]}  Bxc8 {[%clk 0:00:41]} 30. bxa3 {[%clk 0:01:12]}  Rxa3 {[%clk 0:00:30]} 31. Nc4 {[%clk 0:01:12]}  Qf8 {[%clk 0:00:15]} 32. Qxd4 {[%clk 0:00:43]}  Nc2 {[%clk 0:00:14]} 33. Qb2 {[%clk 0:00:35]}  Nxe1 {[%clk 0:00:13]} 34. Qxa3 {[%clk 0:00:31]}  Qxa3 {[%clk 0:00:13]} 35. Nxa3 {[%clk 0:00:32]}  Nxd3 {[%clk 0:00:13]} 36. Bf1 {[%clk 0:00:24]}  Nc5 {[%clk 0:00:12]} 37. Kh2 {[%clk 0:00:13]}  Kg6 {[%clk 0:00:12]} 38. Bb5 {[%clk 0:00:13]}  Kf6 {[%clk 0:00:11]} 39. Nc4 {[%clk 0:00:12]}  Ba6 {[%clk 0:00:11]} 40. Bxa6 {[%clk 0:00:12]}  Nxa6 {[%clk 0:00:12]} 41. Ne5 {[%clk 0:00:13]}  Nc5 {[%clk 0:00:13]} 42. Kg2 {[%clk 0:00:13]}  Ke7 {[%clk 0:00:13]} 43. Kf3 {[%clk 0:00:13]}  Nd7 {[%clk 0:00:13]} 44. Nc6+ {[%clk 0:00:14]}  Kf6 {[%clk 0:00:13]} 45. Nd4 {[%clk 0:00:14]}  e5 {[%clk 0:00:13]} 46. fxe5+ {[%clk 0:00:15]}  Nxe5+ {[%clk 0:00:14]} 47. Kg2 {[%clk 0:00:16]}  g5 {[%clk 0:00:14]} 48. hxg5+ {[%clk 0:00:17]}  hxg5 {[%clk 0:00:15]} 49. Ne2 {[%clk 0:00:17]}  Nd3 {[%clk 0:00:15]} 50. Nd4 {[%clk 0:00:18]}  Ke5 {[%clk 0:00:15]} 51. Nf3+ {[%clk 0:00:18]}  Kf6 {[%clk 0:00:15]} 52. Nd4 {[%clk 0:00:19]}  Nc5 {[%clk 0:00:15]} 53. Nf3 {[%clk 0:00:19]}  Ne6 {[%clk 0:00:15]} 54. Nd2 {[%clk 0:00:19]}  Ke5 {[%clk 0:00:16]} 55. Kf2 {[%clk 0:00:19]}  g4 {[%clk 0:00:14]} 56. Nc4+ {[%clk 0:00:19]}  Kd4 {[%clk 0:00:14]} 57. Nd6 {[%clk 0:00:20]}  Ke5 {[%clk 0:00:13]} 58. Nf7+ {[%clk 0:00:19]}  Kf6 {[%clk 0:00:11]} 59. Nd6 {[%clk 0:00:20]}  Nc5 {[%clk 0:00:10]} 60. Ke3 {[%clk 0:00:18]}  Ke6 {[%clk 0:00:10]} 61. Nc4 {[%clk 0:00:14]}  Kf6 {[%clk 0:00:09]} 62. Nd6 {[%clk 0:00:12]}  Ne6 {[%clk 0:00:09]} 63. Nc4 {[%clk 0:00:12]}  Ke7 {[%clk 0:00:08]} 64. Kf2 {[%clk 0:00:10]}  Kf7 {[%clk 0:00:06]} 65. Nd6+ {[%clk 0:00:10]}  Kf6 {[%clk 0:00:07]} 66. Ke3 {[%clk 0:00:11]}  Ng5 {[%clk 0:00:06]} 67. Nc4 {[%clk 0:00:10]}  Nf7 {[%clk 0:00:04]} 68. Kf4 {[%clk 0:00:09]}  Nd8 {[%clk 0:00:04]} 69. Nd6 {[%clk 0:00:07]}  Ne6+ {[%clk 0:00:05]} 70. Ke3 {[%clk 0:00:07]}  Ke5 {[%clk 0:00:06]} 71. Nc4+ {[%clk 0:00:08]}  Kd5 {[%clk 0:00:06]} 72. Nd2 {[%clk 0:00:07]}  Ke5 {[%clk 0:00:04]} 73. Nc4+ {[%clk 0:00:08]}  Kf6 {[%clk 0:00:05]} 74. Nd6 {[%clk 0:00:08]} 1/2-1/2


[Site "https://www.chess.com"]

[Event "Titled Tuesday Blitz February 22 Early 2022"]
[White "Hjartarson, Johann"]
[Black "Nesterov, Arseniy"]
[WhiteFideId "2300044"]
[BlackFideId "24198455"]
[WhiteElo "2484"]
[BlackElo "2489"]
[Result "1-0"]
[Round "10"]
[TimeControl "180+1"]
[Date "2022.02.22"]
[WhiteClock "0:00:13"]
[BlackClock "0:00:03"]

1. e4 {[%clk 0:03:00]}  e5 {[%clk 0:03:00]} 2. Nf3 {[%clk 0:03:00]}  Nc6 {[%clk 0:03:00]} 3. Bb5 {[%clk 0:03:00]}  a6 {[%clk 0:03:00]} 4. Ba4 {[%clk 0:03:00]}  b5 {[%clk 0:03:00]} 5. Bb3 {[%clk 0:02:59]}  Na5 {[%clk 0:03:01]} 6. d4 {[%clk 0:02:57]}  exd4 {[%clk 0:03:00]} 7. Qxd4 {[%clk 0:02:52]}  Bb7 {[%clk 0:03:00]} 8. Bg5 {[%clk 0:02:45]}  Ne7 {[%clk 0:02:15]} 9. Nc3 {[%clk 0:02:29]}  f6 {[%clk 0:01:35]} 10. Bh4 {[%clk 0:01:46]}  Ng6 {[%clk 0:01:29]} 11. a4 {[%clk 0:01:27]}  Nxb3 {[%clk 0:01:17]} 12. cxb3 {[%clk 0:01:27]}  b4 {[%clk 0:01:16]} 13. Nd5 {[%clk 0:01:24]}  c6 {[%clk 0:00:47]} 14. Ne3 {[%clk 0:01:16]}  Nxh4 {[%clk 0:00:27]} 15. Nxh4 {[%clk 0:01:15]}  g6 {[%clk 0:00:28]} 16. O-O {[%clk 0:01:09]}  Be7 {[%clk 0:00:26]} 17. Rad1 {[%clk 0:00:58]}  Kf7 {[%clk 0:00:06]} 18. Qxd7 {[%clk 0:00:53]}  Qxd7 {[%clk 0:00:07]} 19. Rxd7 {[%clk 0:00:52]}  Bc8 {[%clk 0:00:07]} 20. Rc7 {[%clk 0:00:51]}  Be6 {[%clk 0:00:08]} 21. Nc4 {[%clk 0:00:34]}  Bxc4 {[%clk 0:00:03]} 22. bxc4 {[%clk 0:00:34]}  Rhc8 {[%clk 0:00:04]} 23. Rxc8 {[%clk 0:00:33]}  Rxc8 {[%clk 0:00:05]} 24. Nf3 {[%clk 0:00:23]}  Rd8 {[%clk 0:00:05]} 25. Rc1 {[%clk 0:00:20]}  b3 {[%clk 0:00:05]} 26. Kf1 {[%clk 0:00:18]}  Bb4 {[%clk 0:00:04]} 27. Ke2 {[%clk 0:00:18]}  Ke6 {[%clk 0:00:03]} 28. Rd1 {[%clk 0:00:18]}  Bd6 {[%clk 0:00:02]} 29. Nd4+ {[%clk 0:00:17]}  Kd7 {[%clk 0:00:02]} 30. c5 {[%clk 0:00:17]}  Bxc5 {[%clk 0:00:01]} 31. Nxc6+ {[%clk 0:00:17]}  Kxc6 {[%clk 0:00:01]} 32. Rxd8 {[%clk 0:00:17]}  Ba3 {[%clk 0:00:02]} 33. bxa3 {[%clk 0:00:14]}  b2 {[%clk 0:00:02]} 34. Rb8 {[%clk 0:00:14]}  b1=Q {[%clk 0:00:03]} 35. Rxb1 {[%clk 0:00:13]} 1-0


[Site "https://www.chess.com"]

[Event "Titled Tuesday Blitz February 22 Early 2022"]
[White "Iljin, Timofey"]
[Black "Dew, Brian"]
[WhiteFideId "14110180"]
[BlackFideId "6000495"]
[WhiteElo "2396"]
[BlackElo "2118"]
[Result "1-0"]
[Round "10"]
[TimeControl "180+1"]
[Date "2022.02.22"]
[WhiteClock "0:02:19"]
[BlackClock "0:00:01"]

1. e4 {[%clk 0:03:00]}  e5 {[%clk 0:02:58]} 2. d4 {[%clk 0:02:59]}  exd4 {[%clk 0:02:58]} 3. c3 {[%clk 0:02:58]}  d5 {[%clk 0:02:56]} 4. exd5 {[%clk 0:02:58]}  Qxd5 {[%clk 0:02:54]} 5. cxd4 {[%clk 0:02:58]}  Nc6 {[%clk 0:02:52]} 6. Nf3 {[%clk 0:02:57]}  Nf6 {[%clk 0:02:50]} 7. Nc3 {[%clk 0:02:56]}  Bb4 {[%clk 0:02:49]} 8. Be2 {[%clk 0:02:56]}  Bg4 {[%clk 0:02:23]} 9. O-O {[%clk 0:02:54]}  Bxc3 {[%clk 0:02:22]} 10. bxc3 {[%clk 0:02:54]}  O-O {[%clk 0:02:21]} 11. h3 {[%clk 0:02:54]}  Bh5 {[%clk 0:02:19]} 12. Be3 {[%clk 0:02:55]}  Qa5 {[%clk 0:01:59]} 13. c4 {[%clk 0:02:51]}  Rad8 {[%clk 0:01:57]} 14. d5 {[%clk 0:02:47]}  Bxf3 {[%clk 0:01:32]} 15. Bxf3 {[%clk 0:02:48]}  Ne5 {[%clk 0:01:32]} 16. Be2 {[%clk 0:02:38]}  b5 {[%clk 0:01:25]} 17. Bd4 {[%clk 0:02:31]}  Rfe8 {[%clk 0:01:17]} 18. f4 {[%clk 0:02:21]}  Nxc4 {[%clk 0:00:18]} 19. Bxc4 {[%clk 0:02:18]}  bxc4 {[%clk 0:00:08]} 20. Bxf6 {[%clk 0:02:18]}  gxf6 {[%clk 0:00:01]} 21. Qg4+ {[%clk 0:02:19]}  Kh8 {[%clk 0:00:01]} 22. Qf5 {[%clk 0:02:19]} 1-0


[Site "https://www.chess.com"]

[Event "Titled Tuesday Blitz February 22 Early 2022"]
[White "Ismayil, Malak"]
[Black "Heinemann, Josefine"]
[WhiteFideId "13412604"]
[BlackFideId "12900460"]
[WhiteElo "1879"]
[BlackElo "2300"]
[Result "0-1"]
[Round "10"]
[TimeControl "180+1"]
[Date "2022.02.22"]
[WhiteClock "0:00:25"]
[BlackClock "0:00:24"]

1. e4 {[%clk 0:03:00]}  e5 {[%clk 0:02:05]} 2. Nf3 {[%clk 0:02:59]}  Nc6 {[%clk 0:02:04]} 3. Bd3 {[%clk 0:02:57]}  Nf6 {[%clk 0:02:01]} 4. c3 {[%clk 0:02:56]}  Be7 {[%clk 0:01:54]} 5. O-O {[%clk 0:02:55]}  O-O {[%clk 0:01:53]} 6. Bc2 {[%clk 0:02:55]}  d5 {[%clk 0:01:54]} 7. exd5 {[%clk 0:02:53]}  Nxd5 {[%clk 0:01:54]} 8. Re1 {[%clk 0:02:53]}  Bd6 {[%clk 0:01:48]} 9. h3 {[%clk 0:02:48]}  Qf6 {[%clk 0:01:41]} 10. d3 {[%clk 0:02:45]}  Nf4 {[%clk 0:01:40]} 11. Bxf4 {[%clk 0:02:42]}  Qxf4 {[%clk 0:01:40]} 12. Nbd2 {[%clk 0:02:42]}  Be6 {[%clk 0:01:38]} 13. Ne4 {[%clk 0:02:41]}  h6 {[%clk 0:01:32]} 14. Ng3 {[%clk 0:02:31]}  Bc5 {[%clk 0:01:19]} 15. d4 {[%clk 0:02:17]}  exd4 {[%clk 0:01:16]} 16. Re4 {[%clk 0:02:15]}  Qf6 {[%clk 0:01:15]} 17. cxd4 {[%clk 0:02:13]}  Rad8 {[%clk 0:01:08]} 18. Ne2 {[%clk 0:01:58]}  Bb6 {[%clk 0:01:03]} 19. Rf4 {[%clk 0:01:49]}  Qe7 {[%clk 0:01:01]} 20. Qd3 {[%clk 0:01:48]}  g6 {[%clk 0:01:01]} 21. a3 {[%clk 0:01:46]}  Rd7 {[%clk 0:00:47]} 22. Rd1 {[%clk 0:01:36]}  Rfd8 {[%clk 0:00:45]} 23. Qe3 {[%clk 0:01:36]}  Bd5 {[%clk 0:00:29]} 24. Qxe7 {[%clk 0:01:26]}  Rxe7 {[%clk 0:00:30]} 25. Ng3 {[%clk 0:01:24]}  Bxf3 {[%clk 0:00:28]} 26. Rxf3 {[%clk 0:01:22]}  Rxd4 {[%clk 0:00:28]} 27. Rfd3 {[%clk 0:01:10]}  Rxd3 {[%clk 0:00:28]} 28. Rxd3 {[%clk 0:01:11]}  Kg7 {[%clk 0:00:28]} 29. Kf1 {[%clk 0:01:08]}  Nd4 {[%clk 0:00:26]} 30. Bd1 {[%clk 0:01:07]}  c5 {[%clk 0:00:25]} 31. Rc3 {[%clk 0:00:59]}  Ba5 {[%clk 0:00:21]} 32. Re3 {[%clk 0:00:56]}  Rxe3 {[%clk 0:00:21]} 33. fxe3 {[%clk 0:00:57]}  Ne6 {[%clk 0:00:21]} 34. Ne4 {[%clk 0:00:56]}  Bc7 {[%clk 0:00:21]} 35. Bb3 {[%clk 0:00:55]}  b6 {[%clk 0:00:18]} 36. Nc3 {[%clk 0:00:55]}  Be5 {[%clk 0:00:17]} 37. Ke2 {[%clk 0:00:51]}  Bxc3 {[%clk 0:00:17]} 38. bxc3 {[%clk 0:00:52]}  Nc7 {[%clk 0:00:16]} 39. a4 {[%clk 0:00:51]}  f5 {[%clk 0:00:16]} 40. Kf3 {[%clk 0:00:45]}  Kf6 {[%clk 0:00:16]} 41. e4 {[%clk 0:00:45]}  Ke5 {[%clk 0:00:15]} 42. exf5 {[%clk 0:00:45]}  gxf5 {[%clk 0:00:16]} 43. g3 {[%clk 0:00:42]}  a6 {[%clk 0:00:16]} 44. h4 {[%clk 0:00:39]}  b5 {[%clk 0:00:15]} 45. axb5 {[%clk 0:00:38]}  Nxb5 {[%clk 0:00:16]} 46. Bc4 {[%clk 0:00:36]}  Nc7 {[%clk 0:00:16]} 47. g4 {[%clk 0:00:33]}  fxg4+ {[%clk 0:00:16]} 48. Kxg4 {[%clk 0:00:34]}  a5 {[%clk 0:00:17]} 49. Kh5 {[%clk 0:00:33]}  a4 {[%clk 0:00:15]} 50. Kxh6 {[%clk 0:00:33]}  Kf6 {[%clk 0:00:16]} 51. Kh5 {[%clk 0:00:32]}  a3 {[%clk 0:00:15]} 52. Kg4 {[%clk 0:00:31]}  Nb5 {[%clk 0:00:15]} 53. Kf4 {[%clk 0:00:21]}  Nxc3 {[%clk 0:00:16]} 54. Ke3 {[%clk 0:00:20]}  a2 {[%clk 0:00:15]} 55. Bxa2 {[%clk 0:00:19]}  Nxa2 {[%clk 0:00:16]} 56. Kd3 {[%clk 0:00:19]}  Nb4+ {[%clk 0:00:17]} 57. Kc4 {[%clk 0:00:19]}  Na6 {[%clk 0:00:17]} 58. Kb5 {[%clk 0:00:16]}  Kg6 {[%clk 0:00:17]} 59. Kc4 {[%clk 0:00:15]}  Kh5 {[%clk 0:00:17]} 60. Kb5 {[%clk 0:00:16]}  Kxh4 {[%clk 0:00:18]} 61. Kc4 {[%clk 0:00:17]}  Kg5 {[%clk 0:00:17]} 62. Kc3 {[%clk 0:00:18]}  Kf5 {[%clk 0:00:18]} 63. Kc4 {[%clk 0:00:18]}  Ke5 {[%clk 0:00:18]} 64. Kc3 {[%clk 0:00:19]}  Kd5 {[%clk 0:00:19]} 65. Kd3 {[%clk 0:00:20]}  c4+ {[%clk 0:00:20]} 66. Kc3 {[%clk 0:00:21]}  Kc5 {[%clk 0:00:20]} 67. Kc2 {[%clk 0:00:22]}  Kb4 {[%clk 0:00:21]} 68. Kb2 {[%clk 0:00:22]}  c3+ {[%clk 0:00:22]} 69. Kc2 {[%clk 0:00:23]}  Kc4 {[%clk 0:00:23]} 70. Kc1 {[%clk 0:00:24]}  Kd3 {[%clk 0:00:23]} 71. Kd1 {[%clk 0:00:24]}  Nc5 {[%clk 0:00:24]} 72. Kc1 {[%clk 0:00:24]}  Nb3+ {[%clk 0:00:24]} 73. Kb1 {[%clk 0:00:24]}  c2+ {[%clk 0:00:24]} 74. Kb2 {[%clk 0:00:25]}  c1=Q+ {[%clk 0:00:24]} 0-1


[Site "https://www.chess.com"]

[Event "Titled Tuesday Blitz February 22 Early 2022"]
[White "Jacobson, Aaron"]
[Black "Papasimakopoulos, Alexandros"]
[WhiteFideId "2089912"]
[BlackFideId "4244125"]
[WhiteElo "2265"]
[BlackElo "2340"]
[Result "1-0"]
[Round "10"]
[TimeControl "180+1"]
[Date "2022.02.22"]
[WhiteClock "0:00:09"]
[BlackClock "0:00:01"]

1. Nf3 {[%clk 0:02:56]}  d5 {[%clk 0:02:56]} 2. c4 {[%clk 0:02:57]}  e6 {[%clk 0:02:52]} 3. e3 {[%clk 0:02:56]}  Nf6 {[%clk 0:02:52]} 4. Nc3 {[%clk 0:02:57]}  Be7 {[%clk 0:02:49]} 5. b3 {[%clk 0:02:56]}  c5 {[%clk 0:02:48]} 6. cxd5 {[%clk 0:02:56]}  Nxd5 {[%clk 0:02:47]} 7. Bb2 {[%clk 0:02:54]}  O-O {[%clk 0:02:48]} 8. Qc2 {[%clk 0:02:50]}  Nc6 {[%clk 0:02:45]} 9. h4 {[%clk 0:02:50]}  Bf6 {[%clk 0:02:36]} 10. g4 {[%clk 0:02:13]}  Nxc3 {[%clk 0:02:31]} 11. dxc3 {[%clk 0:02:09]}  g6 {[%clk 0:02:24]} 12. g5 {[%clk 0:02:06]}  Bg7 {[%clk 0:02:24]} 13. Bb5 {[%clk 0:01:56]}  Qb6 {[%clk 0:02:18]} 14. Bd3 {[%clk 0:01:51]}  e5 {[%clk 0:02:15]} 15. h5 {[%clk 0:01:48]}  Bg4 {[%clk 0:02:08]} 16. Be4 {[%clk 0:01:39]}  Ne7 {[%clk 0:02:01]} 17. h6 {[%clk 0:01:31]}  Bh8 {[%clk 0:01:59]} 18. c4 {[%clk 0:01:29]}  Nc6 {[%clk 0:01:34]} 19. O-O-O {[%clk 0:01:29]}  Rad8 {[%clk 0:01:27]} 20. Rhg1 {[%clk 0:01:15]}  Bxf3 {[%clk 0:00:59]} 21. Bxf3 {[%clk 0:01:14]}  Rfe8 {[%clk 0:00:55]} 22. Kb1 {[%clk 0:01:03]}  Nb4 {[%clk 0:00:43]} 23. Qe4 {[%clk 0:01:02]}  Nc6 {[%clk 0:00:41]} 24. Rd5 {[%clk 0:00:58]}  Nb4 {[%clk 0:00:39]} 25. Rdd1 {[%clk 0:00:48]}  Qa5 {[%clk 0:00:39]} 26. a3 {[%clk 0:00:41]}  Nc6 {[%clk 0:00:39]} 27. Qc2 {[%clk 0:00:41]}  Qb6 {[%clk 0:00:37]} 28. Bd5 {[%clk 0:00:40]}  Ne7 {[%clk 0:00:35]} 29. Be4 {[%clk 0:00:29]}  Qc7 {[%clk 0:00:27]} 30. f4 {[%clk 0:00:27]}  f6 {[%clk 0:00:24]} 31. fxe5 {[%clk 0:00:21]}  fxg5 {[%clk 0:00:22]} 32. e6 {[%clk 0:00:13]}  Be5 {[%clk 0:00:22]} 33. Rxd8 {[%clk 0:00:11]}  Rxd8 {[%clk 0:00:22]} 34. Rxg5 {[%clk 0:00:11]}  Bxb2 {[%clk 0:00:14]} 35. Qxb2 {[%clk 0:00:12]}  Nc6 {[%clk 0:00:12]} 36. Bxg6 {[%clk 0:00:10]}  hxg6 {[%clk 0:00:06]} 37. Rxg6+ {[%clk 0:00:11]}  Kf8 {[%clk 0:00:06]} 38. Qf6+ {[%clk 0:00:09]}  Ke8 {[%clk 0:00:01]} 39. Rg8# {[%clk 0:00:09]} 1-0


[Site "https://www.chess.com"]

[Event "Titled Tuesday Blitz February 22 Early 2022"]
[White "Karavaeva, Olga"]
[Black "De Souza, Cristiano Gomes"]
[WhiteFideId "4124111"]
[BlackFideId "2151758"]
[WhiteElo "2105"]
[BlackElo "2068"]
[Result "1-0"]
[Round "10"]
[TimeControl "180+1"]
[Date "2022.02.22"]
[WhiteClock "0:01:31"]
[BlackClock "0:01:08"]

1. c4 {[%clk 0:02:56]}  Nf6 {[%clk 0:02:56]} 2. Nc3 {[%clk 0:02:56]}  g6 {[%clk 0:02:55]} 3. g3 {[%clk 0:02:56]}  Bg7 {[%clk 0:02:55]} 4. Bg2 {[%clk 0:02:57]}  d6 {[%clk 0:02:55]} 5. d4 {[%clk 0:02:58]}  O-O {[%clk 0:02:56]} 6. Nf3 {[%clk 0:02:58]}  Nc6 {[%clk 0:02:43]} 7. d5 {[%clk 0:02:58]}  Na5 {[%clk 0:02:40]} 8. Nd2 {[%clk 0:02:58]}  c5 {[%clk 0:02:38]} 9. dxc6 {[%clk 0:02:56]}  Nxc6 {[%clk 0:02:33]} 10. O-O {[%clk 0:02:56]}  Be6 {[%clk 0:02:32]} 11. Nd5 {[%clk 0:02:55]}  Qd7 {[%clk 0:02:31]} 12. Re1 {[%clk 0:02:51]}  Bh3 {[%clk 0:02:30]} 13. Bh1 {[%clk 0:02:51]}  e6 {[%clk 0:02:29]} 14. Nxf6+ {[%clk 0:02:49]}  Bxf6 {[%clk 0:02:29]} 15. Ne4 {[%clk 0:02:48]}  Bg7 {[%clk 0:02:29]} 16. Qxd6 {[%clk 0:02:47]}  Qxd6 {[%clk 0:02:28]} 17. Nxd6 {[%clk 0:02:48]}  Rab8 {[%clk 0:02:25]} 18. Rb1 {[%clk 0:02:31]}  Rfd8 {[%clk 0:02:09]} 19. Nxb7 {[%clk 0:02:22]}  Rxb7 {[%clk 0:02:07]} 20. Bxc6 {[%clk 0:02:22]}  Rc7 {[%clk 0:02:07]} 21. Bb5 {[%clk 0:02:17]}  Bf5 {[%clk 0:02:03]} 22. e4 {[%clk 0:02:14]}  Bg4 {[%clk 0:02:03]} 23. Bf4 {[%clk 0:02:10]}  Rb7 {[%clk 0:02:00]} 24. b3 {[%clk 0:01:58]}  e5 {[%clk 0:01:57]} 25. Be3 {[%clk 0:01:57]}  Be6 {[%clk 0:01:49]} 26. Bc6 {[%clk 0:01:54]}  Rc7 {[%clk 0:01:47]} 27. Bd5 {[%clk 0:01:54]}  Bxd5 {[%clk 0:01:41]} 28. exd5 {[%clk 0:01:55]}  f5 {[%clk 0:01:41]} 29. f3 {[%clk 0:01:52]}  Bf8 {[%clk 0:01:41]} 30. Bg5 {[%clk 0:01:49]}  Re8 {[%clk 0:01:40]} 31. Bf6 {[%clk 0:01:48]}  Bc5+ {[%clk 0:01:38]} 32. Kg2 {[%clk 0:01:48]}  Bd4 {[%clk 0:01:36]} 33. f4 {[%clk 0:01:48]}  Kf7 {[%clk 0:01:29]} 34. Bxe5 {[%clk 0:01:44]}  Rce7 {[%clk 0:01:26]} 35. Rbd1 {[%clk 0:01:31]}  Bxe5 {[%clk 0:01:23]} 36. Rxe5 {[%clk 0:01:32]}  Rxe5 {[%clk 0:01:23]} 37. fxe5 {[%clk 0:01:33]}  Rxe5 {[%clk 0:01:23]} 38. Rd2 {[%clk 0:01:32]}  Ke7 {[%clk 0:01:23]} 39. c5 {[%clk 0:01:32]}  Re4 {[%clk 0:01:17]} 40. d6+ {[%clk 0:01:31]}  Kd7 {[%clk 0:01:16]} 41. c6+ {[%clk 0:01:31]}  Kd8 {[%clk 0:01:08]} 42. d7 {[%clk 0:01:31]} 1-0


[Site "https://www.chess.com"]

[Event "Titled Tuesday Blitz February 22 Early 2022"]
[White "Kislov, Oleg"]
[Black "Garv Gaur"]
[WhiteFideId "13503774"]
[BlackFideId "45030839"]
[WhiteElo "2252"]
[BlackElo "1950"]
[Result "1/2-1/2"]
[Round "10"]
[TimeControl "180+1"]
[Date "2022.02.22"]
[WhiteClock "0:00:19"]
[BlackClock "0:00:13"]

1. d4 {[%clk 0:03:00]}  d5 {[%clk 0:02:59]} 2. Nc3 {[%clk 0:03:00]}  Nf6 {[%clk 0:02:59]} 3. Bg5 {[%clk 0:03:00]}  e6 {[%clk 0:03:00]} 4. e4 {[%clk 0:03:00]}  dxe4 {[%clk 0:03:00]} 5. Nxe4 {[%clk 0:03:00]}  Be7 {[%clk 0:03:00]} 6. Bxf6 {[%clk 0:03:01]}  Bxf6 {[%clk 0:03:01]} 7. Nf3 {[%clk 0:03:01]}  Be7 {[%clk 0:03:00]} 8. Bd3 {[%clk 0:03:01]}  Nd7 {[%clk 0:03:00]} 9. Qe2 {[%clk 0:03:00]}  Nf6 {[%clk 0:03:00]} 10. c3 {[%clk 0:02:59]}  b6 {[%clk 0:03:00]} 11. Ne5 {[%clk 0:02:58]}  a6 {[%clk 0:02:37]} 12. Qf3 {[%clk 0:02:29]}  Bd7 {[%clk 0:02:09]} 13. O-O {[%clk 0:01:57]}  Bd6 {[%clk 0:01:47]} 14. Nxf6+ {[%clk 0:01:49]}  gxf6 {[%clk 0:01:39]} 15. Nxd7 {[%clk 0:01:47]}  Kxd7 {[%clk 0:01:40]} 16. Be4 {[%clk 0:01:46]}  Rb8 {[%clk 0:01:37]} 17. Bc6+ {[%clk 0:01:46]}  Ke7 {[%clk 0:01:37]} 18. Rae1 {[%clk 0:01:45]}  Qg8 {[%clk 0:01:35]} 19. d5 {[%clk 0:01:42]}  e5 {[%clk 0:01:34]} 20. Qf5 {[%clk 0:01:42]}  Qg5 {[%clk 0:01:23]} 21. Qd7+ {[%clk 0:01:36]}  Kf8 {[%clk 0:01:23]} 22. f4 {[%clk 0:01:34]}  exf4 {[%clk 0:01:22]} 23. Qh3 {[%clk 0:01:23]}  Kg7 {[%clk 0:01:17]} 24. Rf3 {[%clk 0:01:15]}  h5 {[%clk 0:01:03]} 25. Kh1 {[%clk 0:01:11]}  Qg4 {[%clk 0:01:03]} 26. Re4 {[%clk 0:01:03]}  f5 {[%clk 0:00:50]} 27. Re2 {[%clk 0:00:57]}  Qxh3 {[%clk 0:00:49]} 28. Rxh3 {[%clk 0:00:56]}  Kf6 {[%clk 0:00:47]} 29. Rf3 {[%clk 0:00:56]}  Rbg8 {[%clk 0:00:42]} 30. Kg1 {[%clk 0:00:52]}  Rg4 {[%clk 0:00:40]} 31. Kf1 {[%clk 0:00:52]}  Rhg8 {[%clk 0:00:40]} 32. a4 {[%clk 0:00:51]}  a5 {[%clk 0:00:34]} 33. Bb5 {[%clk 0:00:50]}  Bc5 {[%clk 0:00:30]} 34. Rh3 {[%clk 0:00:49]}  h4 {[%clk 0:00:28]} 35. Rf3 {[%clk 0:00:48]}  Be3 {[%clk 0:00:28]} 36. Bd3 {[%clk 0:00:46]}  Rd8 {[%clk 0:00:26]} 37. c4 {[%clk 0:00:45]}  Rgg8 {[%clk 0:00:23]} 38. Bxf5 {[%clk 0:00:44]}  Rge8 {[%clk 0:00:20]} 39. Bd3 {[%clk 0:00:42]}  Ke5 {[%clk 0:00:21]} 40. Bc2 {[%clk 0:00:30]}  Kd4 {[%clk 0:00:21]} 41. b3 {[%clk 0:00:31]}  Rg8 {[%clk 0:00:17]} 42. Rh3 {[%clk 0:00:30]}  Rh8 {[%clk 0:00:17]} 43. Rf3 {[%clk 0:00:26]}  Rhg8 {[%clk 0:00:16]} 44. Rh3 {[%clk 0:00:26]}  Rh8 {[%clk 0:00:17]} 45. Rf3 {[%clk 0:00:24]}  Rde8 {[%clk 0:00:16]} 46. Rh3 {[%clk 0:00:19]}  Rd8 {[%clk 0:00:13]} 1/2-1/2


[Site "https://www.chess.com"]